Workbook

Sheet SEMESTER
B1: MIN KLASSETIMEPLAN
B2: HØSTSEMESTER
C3: STARTTIDSPUNKT | D3: TIDSINTERVALL | F3: ÅR
C4: 09:00:00 | D4: 60 | E4: (i minutter)
B5: TID | C5: MAN | D5: TIR | E5: ONS | F5: TOR | G5: FRE | H5: LØR | I5: SØN
B6: =Starttidspunkt+TIME(0,(ROW(A1)-1)*Tidsintervall,0) -> 09:00:00 | C6: Frokost | D6: Frokost | E6: Frokost | F6: Frokost | G6: Frokost
B7: 10:00:00 | C7: Arbeid: Forelesning bygg B, rom 256
B8: 11:00:00 | F8: Fysikk: Lab Bygg J, ROM 309
B9: 12:00:00
B10: 13:00:00
B11: 14:00:00
B12: 15:00:00
B13: 16:00:00
B14: 17:00:00
B15: 18:00:00
B16: 19:00:00
B17: 20:00:00
B18: 21:00:00
B19: 22:00:00
B20: 23:00:00
B21: 1
B22: 1.041666667
B23: 1.083333333
B24: 1.125
B25: 1.166666667
B26: 1.208333333
B27: 1.25
B28: 1.291666667
B29: 1.333333333

Sheet STUDIEPOENG
B1: HØYSKOLE
B2: STUDIEPOENGPLANLEGGER
B3: Navn på grad | C3: =År -> ÅR
B4: TOTAL FREMDRIFT | D4: TOTAL FREMDRIFT
B5: =AVERAGE(Kurs[KARAKTER]) -> 3.5 | C5: =IFERROR(TEXT(AVERAGEIF(Kurs[FULLFØRT],"Ja",Kurs[KARAKTER]),"0,00"),"0,00")&" Current GPA" -> 3,50 Current GPA | D5: =COUNTIF(Kurs[FULLFØRT],"Ja")/COUNTA(Kurs[NAVN PÅ KURS]) -> 0.6666666667 | E5: =TEXT(COUNTIF(Kurs[FULLFØRT],"Ja")/COUNTA(Kurs[NAVN PÅ KURS]),"0%")&" Fullført" -> 67% Fullført
B6: Merknad: Følgende studiepoengsammendrag settes inn automatisk av oppføringene dine i kursoversiktstabellen nedenfor
B7: KRAV | C7: TOTALE STUDIEPOENG | D7: OPPTJENTE | E7: PÅKREVDE
B8: Hovedfag | C8: =IF(SUMIF(Kurs[KRAV],STUDIEPOENG!$B8,Kurs[STUDIEPOENG])=0,"0",SUMIF(Kurs[KRAV],STUDIEPOENG!$B8,Kurs[STUDIEPOENG])) -> 4 | D8: =SUMIFS(Kurs[STUDIEPOENG],Kurs[KRAV],STUDIEPOENG!$B8,Kurs[FULLFØRT],"Ja") -> 4 | E8: =SUMIF(Kurs[KRAV],STUDIEPOENG!$B8,Kurs[STUDIEPOENG])-SUMIFS(Kurs[STUDIEPOENG],Kurs[KRAV],STUDIEPOENG!$B8,Kurs[FULLFØRT],"Ja") -> 0
B9: Generelle fag | C9: =IF(SUMIF(Kurs[KRAV],STUDIEPOENG!$B9,Kurs[STUDIEPOENG])=0,"0",SUMIF(Kurs[KRAV],STUDIEPOENG!$B9,Kurs[STUDIEPOENG])) -> 3 | D9: =SUMIFS(Kurs[STUDIEPOENG],Kurs[KRAV],STUDIEPOENG!$B9,Kurs[FULLFØRT],"Ja") -> 0 | E9: =SUMIF(Kurs[KRAV],STUDIEPOENG!$B9,Kurs[STUDIEPOENG])-SUMIFS(Kurs[STUDIEPOENG],Kurs[KRAV],STUDIEPOENG!$B9,Kurs[FULLFØRT],"Ja") -> 3
B10: Valgfritt kurs | C10: =IF(SUMIF(Kurs[KRAV],STUDIEPOENG!$B10,Kurs[STUDIEPOENG])=0,"0",SUMIF(Kurs[KRAV],STUDIEPOENG!$B10,Kurs[STUDIEPOENG])) -> 2 | D10: =SUMIFS(Kurs[STUDIEPOENG],Kurs[KRAV],STUDIEPOENG!$B10,Kurs[FULLFØRT],"Ja") -> 2 | E10: =SUMIF(Kurs[KRAV],STUDIEPOENG!$B10,Kurs[STUDIEPOENG])-SUMIFS(Kurs[STUDIEPOENG],Kurs[KRAV],STUDIEPOENG!$B10,Kurs[FULLFØRT],"Ja") -> 0
B11: Generelle studier | C11: =IF(SUMIF(Kurs[KRAV],STUDIEPOENG!$B11,Kurs[STUDIEPOENG])=0,"0",SUMIF(Kurs[KRAV],STUDIEPOENG!$B11,Kurs[STUDIEPOENG])) -> 0 | D11: =SUMIFS(Kurs[STUDIEPOENG],Kurs[KRAV],STUDIEPOENG!$B11,Kurs[FULLFØRT],"Ja") -> 0 | E11: =SUMIF(Kurs[KRAV],STUDIEPOENG!$B11,Kurs[STUDIEPOENG])-SUMIFS(Kurs[STUDIEPOENG],Kurs[KRAV],STUDIEPOENG!$B11,Kurs[FULLFØRT],"Ja") -> 0
B12: Total | C12: =SUBTOTAL(109,STUDIEPOENG!$C$8:$C$11) -> 9 | D12: =SUBTOTAL(109,STUDIEPOENG!$D$8:$D$11) -> 6 | E12: =SUBTOTAL(109,STUDIEPOENG!$E$8:$E$11) -> 3
B13: Kurs
B14: NAVN PÅ KURS | C14: KURSNUMMER | D14: KRAV | E14: STUDIEPOENG | F14: FULLFØRT | G14: KARAKTER | H14: SEMESTER
B15: Kurs 1 | C15: Tall | D15: Hovedfag | E15: 4 | F15: Ja | G15: 4.0 | H15: Semester 1
B16: Kurs 2 | C16: Tall | D16: Generelle fag | E16: 3 | F16: Nei | H16: Semester 1
B17: Kurs 3 | C17: Tall | D17: Valgfritt kurs | E17: 2 | F17: Ja | G17: 3.0 | H17: Semester 1

Sheet BUDSJETT
B1: =Høyskole -> HØYSKOLE
B2: BUDSJETTOVERSIKT
B3: Mitt budsjett | C3: =År -> ÅR
B4: PROSENTANDEL AV INNTEKT BRUKT
B5: =NETTO_MÅNEDLIGE_UTGIFTER/NETTO_MÅNEDLIGE_INNTEKTER -> kr 1
B6: =B5 -> 0.7454545455
B7: NETTO MÅNEDLIGE INNTEKTER | C7: NETTO MÅNEDLIGE UTGIFTER | D7: SALDO
B8: =C10 -> kr 2,750 | C8: ='NETTO MÅNEDLIGE UTGIFTER'!C4+SEMESTERUTGIFTER!D4 -> kr 2,050 | D8: =NETTO_MÅNEDLIGE_INNTEKTER-NETTO_MÅNEDLIGE_UTGIFTER -> kr 700
B9: Måneder i semester | C9: 4
B10: MÅNEDLIGE INNTEKTER | C10: =SUM(Månedligeinntekter[BELØP]) -> kr 2,750
B11: ARTIKKEL | C11: BELØP
B12: Fast inntekt | C12: kr 1,500
B13: Økonomisk støtte | C13: kr 500
B14: Lån | C14: kr 500
B15: Annen inntekt | C15: kr 250

Sheet NETTO MÅNEDLIGE UTGIFTER
B1: =Høyskole -> HØYSKOLE
B2: BUDSJETTOVERSIKT
B3: Månedlige utgifter | C3: =År -> ÅR
B4: MÅNEDLIGE UTGIFTER | C4: =SUM(Månedligeutgifter[BELØP]) -> kr 1,675
B5: ARTIKKEL | C5: BELØP
B6: Leie | C6: kr 300
B7: Verktøy | C7: kr 50
B8: Mobiltelefon | C8: kr 75
B9: Dagligvarer | C9: kr 250
B10: Autotrekk | C10: kr 50
B11: Studielån | C11: kr 500
B12: Kredittkort | C12: kr 275
B13: Forsikring | C13: kr 125
B14: Underholdning | C14: kr 50
B15: Diverse | C15: kr 0

Sheet SEMESTERUTGIFTER
B1: =Høyskole -> HØYSKOLE
B2: BUDSJETTOVERSIKT
B3: SEMESTERUTGIFTER | C3: =År -> ÅR
B4: SEMESTERUTGIFTER (totalt/per måned) | C4: =SUM(Semesterutgifter[BELØP]) -> kr 1,500 | D4: =SUM(Semesterutgifter[PER MÅNED]) -> kr 375
B5: ARTIKKEL | C5: BELØP | D5: PER MÅNED
B6: Undervisning | C6: kr 750 | D6: =Semesterutgifter[[#This Row],[BELØP]]/Måneder_i_semester -> kr 188
B7: Laboratorieavgifter | C7: kr 250 | D7: =Semesterutgifter[[#This Row],[BELØP]]/Måneder_i_semester -> kr 63
B8: Bøker | C8: kr 500 | D8: =Semesterutgifter[[#This Row],[BELØP]]/Måneder_i_semester -> kr 125
B9: Depositum | C9: kr 0 | D9: =Semesterutgifter[[#This Row],[BELØP]]/Måneder_i_semester -> kr 0
B10: Transport | C10: kr 0 | D10: =Semesterutgifter[[#This Row],[BELØP]]/Måneder_i_semester -> kr 0
B11: Andre avgifter | C11: kr 0 | D11: =Semesterutgifter[[#This Row],[BELØP]]/Måneder_i_semester -> kr 0

Sheet BØKER
B1: =Høyskole -> HØYSKOLE
B2: BOKOVERSIKT
B3: Liste over bøker
B4: TITTEL | C4: FORFATTER | D4: KURS | E4: HVOR KAN DEN KJØPES? | F4: ISBN | G4: MERKNADER
B5: Boktittel | C5: Forfatter | D5: Kurs | E5: Sted | F5: Tall
B6: Boktittel | C6: Forfatter | D6: Kurs | E6: Sted | F6: Tall
B7: Boktittel | C7: Forfatter | D7: Kurs | E7: Sted | F7: Tall
